bitfinex/quotes_ETHUSD_20240810
["timestamp","ask_amount","ask_price","bid_price","bid_amount"]
[1723302915807,1.90466,2625.2,2624.5,1.90505]
[1723302916110,4.90466,2625.2,2624.6,0.40103342]
[1723302916405,2.3119,2625.1,2624.6,0.40103342]
[1723302916581,2.3119,2625.1,2624.6,0.21052842]
[1723302916780,2.3119,2625.1,2624.3,1.90525]
[1723302916985,4.21661,2625.1,2624.5,1.90511]
[1723302917182,4.21661,2625.1,2624.6,0.21050113]
[1723302918074,1.90461,2625.2,2624.6,2.50720113]
[1723302918594,1.90469,2625.1,2624.6,0.21050113]
[1723302918798,2.802369,2625.0,2624.6,0.21050113]
[1723302918999,1.90469,2625.1,2624.3,4.20191]
[1723302919199,1.90469,2625.1,2624.5,1.90511]
[1723302919393,1.90469,2625.1,2624.6,0.21050113]
[1723302920192,2.3119,2625.2,2624.6,0.21050113]
[1723302920394,5.3119,2625.2,2624.7,1.90497]
[1723302920598,3.0,2625.2,2624.8,0.21027916]
[1723302920801,1.90458,2625.3,2624.7,1.90497]
[1723302920999,3.80918,2625.3,2624.8,0.21027916]
[1723302921205,4.90461,2625.2,2624.7,1.90497]
[1723302921401,4.90461,2625.2,2624.8,0.21027916]
[1723302921614,1.90458,2625.3,2624.5,1.90507]
[1723302921824,1.90458,2625.3,2624.9,0.21016818]
[1723302922002,1.90458,2625.3,2624.7,1.90493]
[1723302922206,1.90458,2625.3,2624.8,0.21031736]
[1723302922409,1.90477,2625.0,2624.4,1.90516]
[1723302922580,1.90474,2625.1,2624.5,0.21065032]
[1723302922916,1.90458,2625.3,2624.7,1.9049]
[1723302923419,1.90458,2625.3,2624.8,0.21031736]
[1723302923620,1.90474,2625.1,2624.5,1.9051]
[1723302923921,1.90474,2625.1,2624.9,0.21020638]
[1723302924116,1.90474,2625.1,2624.5,1.9051]
[1723302924617,1.90474,2625.1,2624.6,0.21053933]
[1723302924810,2.4043806,2625.1,2624.6,0.21053933]
[1723302925006,0.55,2625.0,2624.6,0.21053933]
[1723302925386,0.55,2625.0,2624.6,2.11558933]
[1723302925589,0.55,2625.1,2624.6,2.11558933]
[1723302925790,0.9141716,2625.1,2624.6,0.21053933]
[1723302926123,1.90484,2624.9,2624.3,4.20191]
[1723302926287,0.55,2624.8,2624.7,0.21042834]
[1723302926487,0.55,2624.8,2624.3,4.20191]
[1723302926688,0.55,2624.8,2624.7,0.21042834]
[1723302926918,0.55,2624.9,2624.3,4.81264]
[1723302927220,0.55,2624.9,2624.4,0.481264]
[1723302927417,0.55,2624.9,2624.5,0.21065032]
[1723302927621,2.45483,2624.9,2624.5,0.21065032]
[1723302928318,1.90493,2624.8,2624.5,0.21065032]
[1723302928630,2.45503,2624.7,2624.2,1.90533]
[1723302928923,2.45503,2624.7,2624.6,0.21057207]
[1723302929123,2.45503,2624.7,2624.2,1.90533]
[1723302929298,2.45503,2624.7,2624.6,0.21057207]
[1723302929824,2.45503,2624.7,2624.1,1.90536]
[1723302929987,2.45503,2624.7,2624.2,0.21106251]
[1723302931191,1.90526,2624.3,2624.2,0.21106251]
[1723302931521,1.90526,2624.3,2623.3,4.18035]
[1723302931522,0.55,2624.3,2623.3,4.18035]
[1723302931708,3.81093,2624.1,2623.4,1.90587]
[1723302931919,1.90546,2624.1,2623.5,4.420202]
[1723302932130,0.55,2624.0,2623.5,4.420202]
[1723302932796,0.55,2624.0,2623.8,1.90563]
[1723302932997,3.0,2624.5,2624.1,1.9054]
[1723302933326,9.19502,2624.7,2624.2,1.90534]
[1723302933327,1.90498,2624.7,2624.2,1.90534]
[1723302933643,1.90463,2625.2,2624.5,1.90507]
[1723302933644,2.3995,2625.1,2624.5,1.90507]
[1723302933866,1.90481,2625.0,2624.3,1.90521]
[1723302934146,4.30422,2625.1,2624.5,1.90511]
[1723302934702,8.95852,2625.4,2624.7,1.90496]
[1723302934932,7.05399,2625.4,2624.7,1.90496]
[1723302935127,1.90462,2625.2,2624.5,4.17948]
[1723302935344,1.90462,2625.2,2624.6,0.42556721]
[1723302936437,0.55,2625.1,2624.6,0.42556721]
[1723302936930,0.55,2625.1,2624.7,0.21067672]
[1723302937801,0.55,2625.1,2624.7,2.1918016]
[1723302938018,0.55,2625.2,2624.8,0.26173688]
[1723302938225,1.90481,2625.0,2624.9,0.21045477]
[1723302938431,2.45481,2625.0,2624.3,3.81045]
[1723302938738,1.90481,2625.0,2624.4,0.81944832]
[1723302938949,0.55,2624.9,2624.4,0.81944832]
[1723302939507,2.45485,2624.9,2624.4,0.81944832]
[1723302940117,0.55,2624.9,2624.4,0.81944832]
[1723302940331,0.55,2624.9,2624.5,0.27246683]
[1723302940542,2.45484,2624.9,2624.5,0.48331914]
[1723302940859,2.45484,2624.9,2624.5,0.21085231]
[1723302940860,2.3995,2624.8,2624.5,0.21085231]
[1723302941007,2.45498,2624.7,2623.9,4.17991]
[1723302941347,2.45498,2624.7,2624.1,1.90541]
[1723302941758,1.90505,2624.6,2624.2,0.21123495]
[1723302941912,0.55,2624.5,2624.2,0.21123495]
[1723302942112,0.55,2624.5,2624.0,2.323431]
[1723302942336,0.55,2624.5,2624.3,0.21112665]
[1723302942562,1.90498,2624.7,2624.1,1.9054]
[1723302942563,0.55,2624.6,2624.1,1.9054]
[1723302942743,0.55,2624.6,2624.4,0.21101564]
[1723302942941,1.90513,2624.5,2623.9,4.17991]
[1723302943247,0.55,2624.4,2624.0,1.90546]
[1723302943544,0.55,2624.4,2624.0,0.21145975]
[1723302943924,0.55,2624.4,2624.0,2.11688975]
[1723302944147,2.45512,2624.5,2624.0,0.21145975]
[1723302945335,4.3603,2624.5,2624.0,0.21145975]
[1723302945646,4.36029,2624.5,2624.0,0.21145975]
[1723302945835,4.30481,2624.3,2624.0,0.21145975]
[1723302946036,2.45538,2624.2,2624.0,0.21145975]
[1723302946349,0.55,2624.2,2624.1,2.11672048]
[1723302946548,0.55,2624.2,2624.1,2.74637453]
[1723302946941,1.90463,2625.2,2624.4,1.90515]
[1723302947125,1.90476,2625.0,2624.4,1.90515]
[1723302947316,1.90476,2625.0,2624.5,0.21090736]
[1723302948049,2.3995,2625.5,2625.0,1.90473]
[1723302948213,1.90438,2625.6,2625.0,1.90473]
[1723302948942,1.90438,2625.6,2625.1,0.21013777]
[1723302949141,7.05376,2625.7,2625.1,0.21013777]
[1723302949522,7.05376,2625.7,2625.1,2.11481777]
[1723302949723,5.1495,2625.7,2625.1,2.11481777]
[1723302949923,2.3995,2625.7,2625.1,2.51676955]
[1723302950118,4.30377,2625.7,2625.1,2.51676955]
[1723302950322,2.45432,2625.6,2625.1,0.61208955]
[1723302951249,0.55,2625.6,2625.1,0.61208955]
[1723302951454,0.55,2625.7,2625.3,1.90453]
[1723302951654,3.0,2625.8,2625.4,1.90447]
[1723302951853,3.0,2625.9,2625.4,1.90447]
[1723302952161,3.0,2625.9,2625.5,2.11396668]
[1723302952318,2.3287,2626.3,2625.6,0.40184367]
[1723302952521,2.3287,2626.3,2625.9,1.9041]
[1723302952959,2.3287,2626.3,2626.0,0.20898946]
[1723302953367,7.29,2626.5,2625.9,1.90409]
[1723302953858,7.29,2626.5,2626.0,0.20898946]
[1723302954068,8.77691641,2626.5,2626.0,0.20898946]
[1723302954444,10.68060641,2626.5,2626.0,0.20898946]
[1723302954933,3.55,2626.4,2626.0,0.20898946]
[1723302955354,3.55,2626.4,2625.9,1.90404]
[1723302955868,0.55,2626.4,2626.1,1.9039]
[1723302956543,0.55,2626.4,2626.2,0.20859042]
[1723302956969,0.55,2626.6,2626.2,0.20859042]
[1723302957464,1.90372,2626.5,2626.2,0.20859042]
[1723302957627,1.90372,2626.5,2625.9,1.90404]
[1723302957830,0.55,2626.4,2626.0,0.190404]
[1723302958025,0.55,2626.4,2626.0,0.39921616]
[1723302958841,0.55,2626.4,2626.0,2.30323616]
[1723302959165,0.55,2626.6,2626.0,2.30323616]
[1723302959374,2.45365,2626.6,2626.0,0.39921616]
[1723302959695,0.55,2626.6,2626.0,0.39921616]
[1723302959852,0.55,2626.6,2626.1,2.14190093]
[1723302960034,0.55,2626.6,2626.2,0.20859042]
[1723302960544,2.3287,2626.5,2626.2,0.20859042]
[1723302960748,1.90381,2626.3,2625.4,2.4626]
[1723302960983,1.90396,2626.1,2625.5,2.341098]
[1723302961477,0.55,2626.0,2625.5,0.436708]
[1723302961676,4.78278,2626.0,2625.5,0.436708]
[1723302962042,1.9042,2625.8,2625.2,2.4626]
[1723302962242,2.45427,2625.7,2625.1,1.90464]
[1723302962456,2.45427,2625.7,2624.9,4.36738]
[1723302962762,1.90437,2625.6,2625.0,3.090488]
[1723302962962,0.55,2625.7,2625.1,1.90462]
[1723302962963,0.55,2625.5,2625.1,1.90462]
[1723302963151,0.55,2625.5,2625.3,1.90453]
[1723302963353,1.90399,2626.1,2625.4,2.53877698]
[1723302963556,0.55,2626.0,2625.4,2.53877698]
[1723302964075,0.55,2626.0,2625.5,1.90437]
[1723302964242,2.45404,2626.0,2625.4,2.4626]
[1723302964432,0.55,2626.0,2625.2,0.3090358]
[1723302964629,1.90481,2625.0,2624.4,1.90518]
[1723302964853,1.90481,2625.0,2624.0,2.4626]
[1723302964854,1.90495,2624.8,2624.0,4.36803]
[1723302965054,0.55,2624.7,2624.0,2.4626]
[1723302965343,0.55,2624.7,2624.1,0.24626]
[1723302966056,0.55,2624.8,2624.1,0.24626]
[1723302966578,1.90505,2624.6,2624.1,0.24626]
[1723302966776,0.55,2624.5,2623.9,1.90556]
[1723302966936,0.55,2624.5,2624.2,0.21041611]
[1723302967131,0.55,2624.5,2624.0,1.90547]
[1723302967449,0.55,2624.5,2623.4,1.90591]
[1723302967450,0.55,2624.5,2624.3,0.21030509]
[1723302967772,1.9052,2624.4,2623.8,1.90562]
[1723302967952,0.55,2624.3,2623.8,1.90562]
[1723302968671,2.4553,2624.3,2623.6,1.90577]
[1723302968969,4.36061,2624.3,2623.6,1.90577]
[1723302969135,4.36061,2624.3,2623.4,1.9059]
[1723302969136,1.9055,2624.0,2623.4,1.90585]
[1723302969339,0.55,2623.9,2623.5,1.90584]
[1723302969539,0.55,2623.9,2623.6,0.381169]
[1723302969769,1.90542,2624.1,2623.6,0.381169]
[1723302969770,0.55,2624.0,2623.6,0.381169]
[1723302969945,0.55,2624.0,2623.7,1.9057]
[1723302970153,0.55,2624.2,2623.7,1.9057]
[1723302970467,0.55,2624.2,2623.7,0.19057]
[1723302970843,0.55,2624.4,2623.8,1.90558]
[1723302971076,0.55,2624.4,2623.9,1.90555]
[1723302971369,0.55,2624.4,2624.0,1.90548]
[1723302971557,4.90507,2624.6,2623.8,2.115195]
[1723302971558,2.45512,2624.5,2623.8,2.115195]
[1723302971762,4.36031,2624.5,2623.8,2.115195]
[1723302971970,4.90519,2624.4,2623.8,2.115195]
[1723302972154,0.55,2624.3,2623.8,2.115195]
[1723302973440,0.55,2624.3,2623.9,1.90555]
[1723302973940,0.55,2624.4,2623.9,1.90555]
[1723302974649,0.55,2624.4,2623.8,2.115195]
[1723302974974,0.45,2624.4,2623.8,2.115195]
[1723302975675,0.45,2624.4,2624.0,1.90548]
[1723302975886,1.90495,2624.8,2624.2,1.90533]
[1723302976543,1.90513,2624.5,2623.9,0.2115195]
[1723302977276,0.55,2624.4,2624.0,1.90543]
[1723302977568,0.55,2624.6,2624.0,1.90543]
[1723302977769,0.55,2624.6,2624.1,0.21169495]
[1723302977938,0.55,2624.6,2624.2,0.07620933]
[1723302978139,3.0,2624.8,2624.2,0.07620933]
[1723302978378,4.90486,2624.9,2623.8,2.4572]
[1723302978577,4.90486,2624.9,2624.3,2.11606349]
[1723302978880,4.90486,2624.9,2624.3,1.90524]
[1723302979035,4.90486,2624.9,2624.4,0.21071247]
[1723302979439,0.55,2624.8,2624.5,1.90507]
[1723302979778,2.45463,2625.2,2624.6,0.21049047]
[1723302979944,1.90482,2625.0,2624.6,0.21049047]
[1723302980269,1.90482,2625.0,2624.3,0.190524]
[1723302980270,1.9049,2624.8,2624.3,0.190524]
[1723302980472,1.9049,2624.8,2624.7,0.21037948]
[1723302980703,0.55,2624.8,2624.3,4.000924]
[1723302980913,1.90482,2625.0,2624.7,0.21037948]
[1723302981073,0.55,2624.9,2624.7,0.21037948]
[1723302981272,0.55,2624.9,2624.4,0.4000924]
[1723302981473,0.55,2624.9,2624.8,0.2102685]
[1723302981672,0.55,2624.9,2624.4,0.4000924]
[1723302981890,0.55,2624.9,2624.5,0.24958164]
[1723302982118,0.55,2624.9,2624.5,0.46018311]
[1723302982412,2.45484,2624.9,2624.5,0.46018311]
[1723302982581,2.45484,2624.9,2624.5,0.21060147]
[1723302982788,2.45484,2624.9,2624.1,1.90538]
[1723302982990,0.55,2624.9,2624.6,0.21049047]
[1723302983189,0.55,2624.9,2624.3,1.90521]
[1723302983510,0.55,2624.9,2624.7,0.21058956]
[1723302983716,0.55,2624.9,2624.4,0.190521]
[1723302984075,2.45485,2624.9,2624.4,0.190521]
[1723302984274,1.90505,2624.6,2624.5,0.21080882]
[1723302984473,1.90505,2624.6,2623.9,4.36272]
[1723302984474,2.45505,2624.6,2623.9,4.36271]
[1723302984686,0.55,2624.5,2624.0,0.21136394]
[1723302984918,0.55,2624.5,2624.0,0.66877133]
[1723302986017,1.9052,2624.4,2624.0,0.66877133]
[1723302986216,0.55,2624.3,2624.0,0.21136394]
[1723302986380,2.45527,2624.3,2624.0,0.21136394]
[1723302986580,2.45527,2624.3,2623.6,4.36291]
[1723302986794,2.45527,2624.3,2624.1,0.2112529]
[1723302987002,0.55,2624.3,2623.7,0.436291]
[1723302987279,1.90527,2624.3,2624.2,0.21114186]
[1723302987485,0.54897045,2624.4,2624.2,0.21114186]
[1723302987897,0.54897045,2624.4,2623.8,1.90558]
[1723302988101,0.54897045,2624.4,2624.3,0.21103084]
[1723302988309,0.54897045,2624.4,2623.8,0.6704811]
[1723302988617,0.54897045,2624.4,2623.9,0.21143678]
[1723302988825,1.90531,2624.3,2623.9,0.21143678]
[1723302989519,0.55,2624.2,2623.9,0.21143678]
[1723302992515,0.55,2624.3,2623.9,0.21143678]
[1723302994992,2.45527,2624.3,2623.9,0.21143678]
[1723302995392,2.45527,2624.3,2623.7,1.90564]
[1723302995619,2.45527,2624.3,2624.0,0.21132574]
[1723302995858,2.45527,2624.3,2623.8,0.626856]
[1723302996043,2.45527,2624.3,2624.1,0.2112147]
[1723302996352,2.45527,2624.3,2624.2,0.21110366]
[1723302996551,2.45527,2624.3,2623.8,2.532476]
[1723302996751,2.45527,2624.3,2624.2,0.21110366]
[1723302996963,1.90536,2624.2,2623.6,4.36292]
[1723302997136,0.55,2624.1,2623.6,4.36292]
[1723302997462,0.55,2624.1,2623.6,1.90572]
[1723302999668,0.55,2624.1,2623.9,1.90555]
[1723302999884,0.55,2624.3,2623.9,1.90555]
[1723303000870,0.55,2624.3,2623.9,3.8111]
[1723303001033,0.55,2624.3,2623.9,1.90555]
[1723303003544,0.55,2624.3,2623.9,1.9055]
[1723303003886,0.55,2624.5,2624.0,2.10364162]
[1723303004038,0.55,2624.5,2624.0,0.19817162]
[1723303004676,0.55,2624.5,2624.0,2.10364162]
[1723303005939,2.45513,2624.5,2624.0,0.19817162]
[1723303006171,2.45513,2624.5,2623.9,1.90549]
[1723303008796,4.2139,2624.0,2623.2,2.2805]
[1723303009086,0.55,2623.9,2623.3,3.81187]
[1723303009245,0.55,2623.9,2623.4,0.609237]
[1723303009443,0.55,2623.9,2623.4,2.515107]
[1723303009873,0.55,2623.9,2623.4,0.609237]
[1723303010039,7.29,2624.5,2624.0,1.90542]
[1723303010245,7.28248,2624.7,2624.1,1.90534]
[1723303010812,9.18751,2624.7,2624.2,0.21123194]
[1723303011199,7.28248,2624.7,2624.2,0.21123194]
[1723303011345,5.3775,2624.7,2624.2,0.21123194]
[1723303011675,0.55,2624.6,2624.2,0.21123194]
[1723303012182,0.55,2624.6,2623.9,1.90551]
[1723303012477,2.3775,2625.0,2624.4,1.90514]
[1723303012674,2.3775,2625.0,2624.3,1.90526]
[1723303012876,2.3775,2625.0,2624.5,0.2108989]
[1723303013079,1.90483,2624.9,2624.4,0.28720846]
[1723303013281,1.90483,2624.9,2624.6,0.2107879]
[1723303013488,2.3775,2625.0,2624.5,2.1160189]
[1723303013693,4.28227,2625.0,2624.7,0.21067691]
[1723303013873,2.3775,2625.0,2624.6,0.2107879]
[1723303014052,0.55,2624.9,2624.8,0.21047583]
[1723303014252,0.55,2624.9,2624.7,0.21058681]
[1723303014573,0.55,2625.0,2624.8,0.21047583]
[1723303014926,4.28233,2624.9,2624.1,6.14493]
[1723303015211,1.90499,2624.7,2624.2,2.11647184]
[1723303015520,1.90499,2624.7,2624.2,0.84674502]
[1723303015688,2.45492,2624.8,2624.2,2.75205502]
[1723303015886,0.55,2624.8,2624.3,1.90525]
[1723303016086,2.45492,2624.8,2624.3,0.6991555]
[1723303016299,2.45492,2624.8,2624.4,0.21091981]
[1723303016300,0.55,2624.8,2624.4,0.21091981]
[1723303016995,1.90499,2624.7,2624.4,0.21091981]
[1723303017199,1.90499,2624.7,2623.9,4.23971]
[1723303017200,0.55,2624.6,2623.9,4.23971]
[1723303017497,0.55,2624.6,2624.0,0.423971]
[1723303017498,1.90512,2624.5,2624.0,0.423971]
[1723303017698,0.55,2624.4,2624.0,0.423971]
[1723303018074,1.90531,2624.3,2624.0,0.423971]
[1723303018286,0.55,2624.2,2623.6,4.23992]
[1723303018473,0.55,2624.2,2623.7,1.90569]
[1723303019219,0.55,2624.2,2623.6,2.3342]
[1723303019370,1.90546,2624.1,2623.6,2.3342]
[1723303019706,0.55,2624.0,2623.7,0.614581]
[1723303020073,0.55,2624.0,2623.5,1.9058]
[1723303021277,0.55,2624.0,2623.5,3.8116]
[1723303021476,0.55,2624.0,2623.3,2.3342]
[1723303021477,0.55,2624.0,2623.3,6.1461]
[1723303021675,0.55,2624.0,2623.3,1.90594]
[1723303021877,0.55,2624.0,2623.3,2.287144]
[1723303022299,1.90556,2623.9,2623.3,4.193084]
[1723303022496,0.55,2624.0,2623.3,0.381204]
[1723303022708,0.55,2624.0,2623.8,1.90557]
[1723303022908,2.3775,2624.4,2623.7,1.98185896]
[1723303023108,2.3775,2624.4,2623.7,1.90564]
[1723303023109,5.3775,2624.4,2623.7,1.90564]
[1723303023629,1.90531,2624.3,2623.7,1.90564]
[1723303024321,1.90531,2624.3,2623.5,1.90581]
[1723303024322,1.90546,2624.1,2623.5,1.90581]
[1723303024521,0.55,2624.0,2623.5,1.90581]
[1723303024917,2.45554,2624.0,2623.3,6.1461]
[1723303025115,0.55,2624.0,2623.4,2.52048]
[1723303025908,0.55,2624.0,2623.5,1.90584]
[1723303026705,2.9275,2624.0,2623.5,1.90584]
[1723303027136,2.9275,2624.0,2623.6,0.21180816]
[1723303027711,4.2832,2623.7,2623.6,0.21180816]
[1723303027893,1.90579,2623.6,2623.0,1.9062]
[1723303028227,0.55,2623.5,2623.0,3.569863]
[1723303028632,1.90593,2623.4,2622.7,1.90641]
[1723303028841,4.8335,2623.3,2622.7,1.90638]
[1723303029045,4.28351,2623.3,2622.8,0.190638]
[1723303029900,2.3775,2623.3,2622.5,1.90652]
[1723303030252,1.9064,2622.8,2621.9,6.30674]
[1723303030555,1.90654,2622.6,2621.9,4.39975]
[1723303030696,2.8222,2622.7,2621.9,1.90695]
[1723303030996,2.8222,2622.7,2622.2,1.90675]
[1723303031197,2.2722,2623.0,2622.5,1.90657]
[1723303031434,2.2722,2623.0,2622.4,1.90659]
[1723303031927,2.2722,2623.0,2621.9,1.90697]
[1723303032128,0.55,2622.9,2622.4,1.90659]
[1723303032310,1.022841,2622.9,2622.2,1.90677]
[1723303032496,0.55,2622.9,2622.2,1.90677]
[1723303033033,1.90652,2622.6,2622.0,1.90692]
[1723303033235,0.55,2622.5,2622.1,1.90682]
[1723303033463,0.55,2622.9,2622.4,1.90659]
[1723303033670,0.55,2622.9,2622.5,1.90655]
[1723303034625,0.55,2622.9,2622.5,1.90652]
[1723303034965,2.2722,2623.0,2622.5,0.38894879]
[1723303035457,2.2722,2623.0,2622.6,1.90644]
[1723303035640,2.2722,2623.0,2622.5,2.29545879]
[1723303035836,1.90636,2622.8,2622.2,1.90679]
[1723303036031,4.17871,2622.6,2621.9,1.90695]
[1723303036232,2.2722,2622.6,2622.1,1.90686]
[1723303036433,1.90625,2623.0,2622.4,1.90662]
[1723303036434,2.2722,2622.9,2622.4,1.90662]
[1723303036747,2.2722,2623.1,2622.7,1.90642]
[1723303037154,2.2722,2623.1,2622.7,1.90638]
[1723303037337,2.2722,2623.1,2622.7,1.90637]
[1723303037638,2.2722,2623.1,2622.8,0.190637]
[1723303037836,2.2722,2623.1,2622.5,1.98277017]
[1723303038037,4.65573,2623.7,2622.9,1.90626]
[1723303038038,1.9058,2623.6,2622.9,1.90626]
[1723303038272,2.2722,2623.4,2623.1,1.90613]
[1723303038763,2.2722,2623.4,2623.1,1.90608]
[1723303040339,2.2722,2623.4,2622.4,2.4928]
[1723303040340,2.2722,2623.4,2622.7,1.90639]
[1723303040572,2.2722,2623.4,2622.4,2.4928]
[1723303040573,2.45601,2623.3,2622.5,3.81306]
[1723303040760,0.55,2623.3,2622.8,1.90635]
[1723303040994,2.2722,2623.4,2623.0,1.90615]
[1723303041505,2.2722,2623.6,2623.2,1.90606]
[1723303041713,0.55,2623.5,2623.2,1.90606]
[1723303042011,0.55,2623.5,2623.3,0.21296132]
[1723303042211,0.55,2623.5,2623.2,1.90601]
[1723303042212,0.55,2623.5,2623.0,1.9062]
[1723303042411,0.55,2623.5,2623.1,2.11927356]
[1723303042621,0.55,2623.5,2623.2,1.90599]
[1723303042912,0.55,2623.5,2623.3,0.21296134]
[1723303043271,7.1778,2623.9,2623.2,1.90599]
[1723303043478,7.1778,2623.9,2623.4,0.2126316]
[1723303043670,1.90568,2623.8,2623.2,1.90599]
[1723303044108,1.90568,2623.8,2623.3,0.2127427]
[1723303044326,1.90585,2623.5,2623.3,0.2127427]
[1723303044479,2.2722,2623.4,2622.8,1.90633]
[1723303044674,1.906,2623.3,2622.6,1.90644]
[1723303045069,2.45611,2623.2,2622.6,1.90644]
[1723303045315,4.17839,2623.1,2622.4,1.9066]
[1723303045517,4.17839,2623.1,2622.4,3.8132]
[1723303045812,1.90621,2623.0,2622.4,1.9066]
[1723303046043,4.17839,2623.1,2622.4,3.8132]
[1723303046245,2.45622,2623.0,2622.4,1.9066]
[1723303046542,2.2722,2623.8,2622.6,2.4928]
[1723303046702,2.2722,2623.8,2623.3,1.90594]
[1723303047133,1.90592,2623.5,2622.7,2.16332526]
[1723303047334,4.17813,2623.4,2622.5,2.4928]
[1723303047634,1.90612,2623.2,2622.5,1.90651]
[1723303047836,0.417832,2623.1,2622.5,1.90651]
[1723303048007,0.55,2623.0,2622.7,1.90636]
[1723303048208,0.55,2623.2,2622.7,1.90636]
[1723303048536,2.2722,2623.1,2622.5,1.90652]
[1723303048701,0.55,2623.0,2622.5,1.90652]
[1723303049329,1.90634,2622.9,2622.3,1.90668]
[1723303049535,0.55,2622.8,2622.3,1.90666]
[1723303049946,4.35436,2622.6,2621.5,2.4913]
[1723303050111,4.35436,2622.6,2621.9,1.907]
[1723303050112,4.35443,2622.5,2621.9,1.907]
[1723303050316,2.9978,2622.5,2622.0,1.90689]
[1723303050521,2.9978,2622.5,2621.9,1.907]
[1723303050522,4.90439,2622.5,2621.9,1.907]
[1723303050762,4.90439,2622.5,2621.7,1.90713]
[1723303050908,1.90676,2622.3,2621.5,1.90728]
[1723303051113,0.55,2622.2,2621.5,1.90727]
[1723303051301,0.55,2622.2,2621.8,1.90704]
[1723303051536,4.35439,2622.5,2621.8,1.90704]
[1723303051537,2.45665,2622.4,2621.8,1.90704]
[1723303051717,2.4478,2622.2,2621.5,1.90727]
[1723303051935,2.45688,2622.1,2621.5,2.588739]
[1723303052244,2.45688,2622.1,2621.5,0.681469]
[1723303052635,0.55,2622.1,2621.6,1.90721]
[1723303052836,2.4478,2622.5,2621.8,1.90702]
[1723303053039,0.55,2622.4,2622.1,1.90684]
[1723303053284,2.4478,2622.5,2622.2,1.90674]
[1723303053483,2.4478,2622.5,2622.1,2.2958002]
[1723303053654,2.4478,2622.5,2622.1,1.9068]
[1723303053839,1.90637,2622.8,2622.2,1.90675]
[1723303054178,1.90637,2622.8,2622.3,1.90672]
[1723303054179,3.0,2622.8,2622.3,1.90672]
[1723303054388,7.35409,2622.9,2622.3,1.90672]
[1723303054563,8.28034068,2622.9,2622.3,1.90672]
[1723303054875,1.90637,2622.8,2622.1,3.81361]
[1723303055178,0.55,2622.7,2622.1,3.81361]
[1723303055678,0.55,2622.7,2622.1,1.9068]
[1723303056175,2.4478,2622.9,2622.4,1.9066]
[1723303056355,4.35413,2622.9,2622.2,1.90678]
[1723303056741,4.35413,2622.9,2622.3,0.21453755]
[1723303056742,1.90636,2622.8,2622.3,0.21453755]
[1723303056940,1.90636,2622.8,2622.2,1.90678]
[1723303057149,2.4478,2622.9,2622.3,2.12123755]
[1723303057359,0.55,2622.8,2622.3,2.12123755]
[1723303057742,0.55,2622.8,2622.3,0.21453755]
[1723303057743,1.90652,2622.6,2622.3,0.21453755]
[1723303058057,6.81107,2622.5,2621.8,1.90707]
[1723303058240,6.26107,2622.5,2621.9,0.21498237]
[1723303058576,2.45666,2622.4,2621.9,0.21498237]
[1723303058881,0.55,2622.4,2621.7,1.9071]
[1723303059048,1.90677,2622.3,2622.0,0.21487115]
[1723303059352,1.90687,2622.1,2621.5,1.90725]
[1723303059553,1.90687,2622.1,2621.6,0.190725]
[1723303062183,1.90694,2622.0,2621.6,0.190725]
[1723303062344,1.90694,2622.0,2621.3,1.90739]
[1723303062543,0.55,2621.9,2621.3,1.90739]
[1723303063044,2.4478,2621.8,2621.3,1.90739]
[1723303063252,2.4478,2621.8,2621.1,1.90755]
[1723303063452,4.35494,2621.8,2621.1,3.81508]
[1723303063661,6.26208,2621.8,2621.1,2.289038]
[1723303063868,4.35494,2621.8,2621.1,2.289038]
[1723303064141,4.35494,2621.8,2621.1,1.90753]
[1723303064364,2.4572,2621.7,2621.1,1.90753]
[1723303064574,1.90725,2621.6,2620.9,1.9077]
[1723303064771,2.4478,2621.5,2620.9,1.90769]
[1723303064979,0.55,2621.4,2620.9,1.90769]
[1723303065545,1.040505,2621.4,2620.7,11.90786]
[1723303065745,0.55,2621.4,2620.7,11.90786]
[1723303066004,1.90753,2621.2,2620.7,10.0]
[1723303066141,1.90777,2620.9,2620.7,10.0]
[1723303066343,2.4478,2621.0,2620.7,10.0]
[1723303066654,1.90781,2620.8,2620.7,10.0]
[1723303066871,4.35561,2620.8,2620.7,10.0]
[1723303067042,6.81342,2620.8,2620.7,10.0]
[1723303067395,9.81342,2620.8,2620.7,10.0]
[1723303071426,11.72123,2620.8,2620.7,10.0]
[1723303071722,7.35561,2620.8,2620.7,10.0]
[1723303072152,7.35561,2620.8,2620.7,10.20996911]
[1723303072373,5.4478,2620.8,2620.7,10.20996911]
[1723303072569,2.18231,2621.5,2620.7,10.20996911]
[1723303072570,2.2515,2621.1,2620.7,10.20996911]
[1723303072714,9.1974,2621.4,2620.7,10.20996911]
[1723303072715,4.1589,2621.4,2620.7,10.20996911]
[1723303072930,4.1589,2621.4,2620.8,1.02099691]
[1723303073173,4.1589,2621.4,2620.8,1.23078074]
[1723303073316,1.90774,2620.9,2620.8,0.20978383]
[1723303073521,4.15924,2620.9,2620.8,0.20978383]
[1723303073752,4.15924,2620.9,2620.7,10.0]
[1723303074116,4.15924,2620.9,2620.8,0.20967156]
[1723303074520,1.90779,2620.9,2620.7,10.0]
[1723303074757,1.90779,2620.9,2620.8,0.21003553]
[1723303075122,1.90779,2620.9,2620.7,10.0]
[1723303075454,1.90779,2620.9,2620.8,0.21004648]
[1723303075630,1.90779,2620.9,2620.7,10.0]